fUSD/lending_fUSD_20240915
["ID","MTS","AMOUNT","RATE_DAILY","PERIOD"]
[338183594,1726377039572,-1410.48,0.00012999,2]
[338183596,1726377039582,-500.0,0.00012999,2]
[338183598,1726377039591,-500.0,0.00012999,2]
[338183600,1726377039600,-500.0,0.00012999,2]
[338183602,1726377039610,-1240.83,0.00012999,2]
[338183604,1726377039619,-500.0,0.00012999,2]
[338183606,1726377039628,-889.17,0.00012999,2]
[338183608,1726377039637,-500.0,0.00012999,2]
[338183610,1726377039646,-500.0,0.00012999,2]
[338183612,1726377039655,-500.0,0.00012999,2]
[338183614,1726377039665,-500.0,0.00012999,2]
[338183616,1726377039673,-2664.01,0.00012999,2]
[338183618,1726377039684,-500.0,0.00012999,2]
[338183620,1726377039693,-500.0,0.00012999,2]
[338183622,1726377039702,-500.0,0.00012999,2]
[338183624,1726377039711,-307.91030259,0.00012999,2]
[338183626,1726377039720,-500.0,0.00012999,2]
[338183628,1726377039729,-814.18,0.00012999,2]
[338183630,1726377039738,-500.0,0.00012999,2]
[338183632,1726377039748,-500.0,0.00012999,2]
[338183634,1726377039756,-500.0,0.00012999,2]
[338183636,1726377039766,-500.0,0.00012999,2]
[338183660,1726377040028,-500.0,0.00012999,2]
[338183662,1726377040038,-500.0,0.00012999,2]
[338183664,1726377040048,-500.0,0.00012999,2]
[338183666,1726377040057,-702.59,0.00012999,2]
[338183668,1726377040066,-715.22,0.00012999,2]
[338183670,1726377040076,-500.0,0.00012999,2]
[338183672,1726377040085,-500.0,0.00012999,2]
[338183674,1726377040094,-500.0,0.00012999,2]
[338183676,1726377040104,-653.09,0.00012999,2]
[338183678,1726377040114,-2735.93,0.00012999,2]
[338183680,1726377040128,-500.0,0.00012999,2]
[338183682,1726377040137,-1236.06,0.00012999,2]
[338183684,1726377040146,-500.0,0.00012999,2]
[338183686,1726377040156,-1529.01,0.00012999,2]
[338183688,1726377040166,-500.0,0.00012999,2]
[338183690,1726377040175,-500.0,0.00012999,2]
[338183692,1726377040185,-1238.06,0.00012999,2]
[338183694,1726377040194,-500.0,0.00012999,2]
[338183697,1726377040204,-500.0,0.00012999,2]
[338183699,1726377040213,-500.0,0.00012999,2]
[338183702,1726377040222,-500.0,0.00012999,2]
[338183705,1726377040232,-799.43,0.00012999,2]
[338183707,1726377040242,-500.0,0.00012999,2]
[338183708,1726377040252,-500.0,0.00012999,2]
[338183710,1726377040261,-500.0,0.00012999,2]
[338183712,1726377040270,-500.0,0.00012999,2]
[338183714,1726377040279,-2043.0,0.00012999,2]
[338183716,1726377040289,-500.70077339,0.00012999,2]
[338183718,1726377040298,-1626.46,0.00012999,2]
[338183720,1726377040307,-500.0,0.00012999,2]
[338183722,1726377040316,-520.29,0.00012999,2]
[338183724,1726377040326,-500.0,0.00012999,2]
[338183726,1726377040335,-1363.92,0.00012999,2]
[338183728,1726377040345,-529.98,0.00012999,2]
[338183730,1726377040354,-500.0,0.00012999,2]
[338183732,1726377040364,-500.0,0.00012999,2]
[338183734,1726377040373,-500.0,0.00012999,2]
[338183736,1726377040382,-500.0,0.00012999,2]
[338183737,1726377040391,-500.0,0.00012999,2]
[338183739,1726377040401,-500.0,0.00012999,2]
[338183741,1726377040410,-500.0,0.00012999,2]
[338183743,1726377040419,-500.0,0.00012999,2]
[338183745,1726377040428,-988.51,0.00012999,2]
[338183747,1726377040437,-500.0,0.00012999,2]
[338183749,1726377040447,-1264.77,0.00012999,2]
[338183751,1726377040456,-1095.39,0.00012999,2]
[338183753,1726377040465,-1133.44,0.00012999,2]
[338183755,1726377040475,-500.0,0.00012999,2]
[338183757,1726377040484,-500.0,0.00012999,2]
[338183758,1726377040494,-500.0,0.00012999,2]
[338183760,1726377040503,-500.0,0.00012999,2]
[338183762,1726377040512,-500.0,0.00012999,2]
[338183764,1726377040522,-500.0,0.00012999,2]
[338183766,1726377040531,-500.0,0.00012999,2]
[338183768,1726377040541,-634.4,0.00012999,2]
[338183770,1726377040550,-500.0,0.00012999,2]
[338183771,1726377040559,-716.01,0.00012999,2]
[338183773,1726377040569,-500.0,0.00012999,2]
[338183775,1726377040578,-500.0,0.00012999,2]
[338183777,1726377040587,-500.0,0.00012999,2]
[338183779,1726377040596,-500.0,0.00012999,2]
[338183781,1726377040606,-500.0,0.00012999,2]
[338183783,1726377040615,-500.0,0.00012999,2]
[338183785,1726377040624,-500.0,0.00012999,2]
[338183787,1726377040633,-500.0,0.00012999,2]
[338183789,1726377040643,-500.0,0.00012999,2]
[338183791,1726377040652,-500.0,0.00012999,2]
[338183792,1726377040661,-531.22,0.00012999,2]
[338183794,1726377040671,-756.21,0.00012999,2]
[338183795,1726377040680,-1214.28,0.00012999,2]
[338183796,1726377040690,-500.0,0.00012999,2]
[338183797,1726377040699,-500.0,0.00012999,2]
[338183798,1726377040708,-500.0,0.00012999,2]
[338183799,1726377040718,-500.0,0.00012999,2]
[338183800,1726377040727,-500.0,0.00012999,2]
[338183801,1726377040736,-500.0,0.00012999,2]
[338183802,1726377040746,-500.0,0.00012999,2]
[338183803,1726377040755,-500.0,0.00012999,2]
[338183804,1726377040764,-164.72,0.00012999,2]
[338183805,1726377040773,-2354.55,0.00012999,2]
[338183806,1726377040783,-500.0,0.00012999,2]
[338183807,1726377040792,-500.0,0.00012999,2]
[338183808,1726377040801,-500.0,0.00012999,2]
[338183809,1726377040811,-500.0,0.00012999,2]
[338183810,1726377040820,-1851.8,0.00012999,2]
[338183811,1726377040829,-500.0,0.00012999,2]
[338183812,1726377040839,-500.0,0.00012999,2]
[338183813,1726377040848,-500.0,0.00012999,2]
[338183814,1726377040858,-500.0,0.00012999,2]
[338183815,1726377040867,-500.0,0.00012999,2]
[338183816,1726377040876,-500.0,0.00012999,2]
[338183817,1726377040886,-708.42,0.00012999,2]
[338183818,1726377040895,-500.0,0.00012999,2]
[338183819,1726377040905,-500.0,0.00012999,2]
[338183820,1726377040915,-500.0,0.00012999,2]
[338183821,1726377040925,-2121.53,0.00012999,2]
[338183822,1726377040935,-2242.56,0.00012999,2]
[338183823,1726377040944,-500.0,0.00012999,2]
[338183824,1726377040954,-575.24,0.00012999,2]
[338183825,1726377040963,-554.8,0.00012999,2]
[338183826,1726377040972,-500.0,0.00012999,2]
[338183827,1726377040982,-500.0,0.00012999,2]
[338183828,1726377040992,-2266.06,0.00012999,2]
[338183829,1726377041002,-500.0,0.00012999,2]
[338183830,1726377041012,-2266.06,0.00012999,2]
[338183831,1726377041021,-2266.06,0.00012999,2]
[338183832,1726377041031,-2266.06,0.00012999,2]
[338183833,1726377041041,-2266.06,0.00012999,2]
[338183834,1726377041050,-500.0,0.00012999,2]
[338183835,1726377041061,-929.7,0.00012999,2]
[338183836,1726377041071,-2266.06,0.00012999,2]
[338183837,1726377041080,-500.0,0.00012999,2]
[338183839,1726377041089,-570.17,0.00012999,2]
[338183841,1726377041099,-2266.06,0.00012999,2]
[338183843,1726377041108,-2266.06,0.00012999,2]
[338183845,1726377041118,-562.25,0.00012999,2]
[338183846,1726377041128,-2266.06,0.00012999,2]
[338183847,1726377041138,-2266.06,0.00012999,2]
[338183848,1726377041147,-2266.06,0.00012999,2]
[338183849,1726377041156,-5000.0,0.00012999,2]
[338183850,1726377041166,-500.0,0.00012999,2]
[338183851,1726377041175,-2266.06,0.00012999,2]
[338183852,1726377041184,-2266.06,0.00012999,2]
[338183853,1726377041194,-2266.06,0.00012999,2]
[338183854,1726377041203,-2266.06,0.00012999,2]
[338183855,1726377041213,-2266.06,0.00012999,2]
[338183856,1726377041223,-625.62217204,0.00012999,2]
[338183857,1726377041232,-2266.06,0.00012999,2]
[338183858,1726377041242,-2266.06,0.00012999,2]
[338183859,1726377041251,-2266.06,0.00012999,2]
[338183860,1726377041260,-500.0,0.00012999,2]
[338183861,1726377041269,-2266.06,0.00012999,2]
[338183862,1726377041279,-2266.06,0.00012999,2]
[338183863,1726377041288,-2266.06,0.00012999,2]
[338183864,1726377041297,-500.0,0.00012999,2]
[338183865,1726377041307,-500.0,0.00012999,2]
[338183866,1726377041316,-193.67598499,0.00012999,2]
[338183867,1726377041326,-2266.06,0.00012999,2]
[338183868,1726377041335,-2266.12381126,0.00012999,2]
[338183869,1726377041344,-2894.49,0.00012999,2]
[338183870,1726377041354,-500.0,0.00012999,2]
[338183871,1726377041364,-535.16,0.00012999,2]
[338183872,1726377041375,-500.0,0.00012999,2]
[338183873,1726377041385,-1497.48,0.00012999,2]
[338183874,1726377041394,-555.7,0.00012999,2]
[338183875,1726377041404,-500.0,0.00012999,2]
[338183876,1726377041414,-2603.41,0.00012999,2]
[338183877,1726377041426,-500.0,0.00012999,2]
[338183878,1726377041435,-500.0,0.00012999,2]
[338183879,1726377041445,-500.0,0.00012999,2]
[338183880,1726377041456,-500.0,0.00012999,2]
[338183881,1726377041466,-500.0,0.00012999,2]
[338183882,1726377041475,-500.0,0.00012999,2]
[338183883,1726377041486,-562.75054852,0.00012999,2]
[338183884,1726377041496,-672.91,0.00012999,2]
[338183885,1726377041505,-500.0,0.00012999,2]
[338183886,1726377041515,-500.0,0.00012999,2]
[338183887,1726377041524,-689.51,0.00012999,2]
[338183888,1726377041533,-500.0,0.00012999,2]
[338183889,1726377041543,-500.0,0.00012999,2]
[338183890,1726377041552,-500.0,0.00012999,2]
[338183891,1726377041562,-817.33,0.00012999,2]
[338183892,1726377041571,-500.0,0.00012999,2]
[338183893,1726377041580,-500.0,0.00012999,2]
[338183894,1726377041589,-657.63,0.00012999,2]
[338183895,1726377041598,-500.0,0.00012999,2]
[338183896,1726377041608,-1317.69,0.00012999,2]
[338183897,1726377041618,-500.0,0.00012999,2]
[338183898,1726377041627,-500.0,0.00012999,2]
[338183899,1726377041636,-500.0,0.00012999,2]
[338183900,1726377041646,-500.0,0.00012999,2]
[338183901,1726377041655,-1260.88,0.00012999,2]
[338183902,1726377041665,-2183.64,0.00012999,2]
[338183903,1726377041675,-2377.55,0.00012999,2]
[338183904,1726377041685,-2361.15,0.00012999,2]
[338183905,1726377041695,-500.0,0.00012999,2]
[338183906,1726377041705,-500.0,0.00012999,2]
[338183907,1726377041715,-1885.01,0.00012999,2]
[338183908,1726377041724,-500.0,0.00012999,2]
[338183909,1726377041733,-555.98,0.00012999,2]
[338183910,1726377041744,-508.46790305,0.00012999,2]
[338183911,1726377041753,-500.0,0.00012999,2]
[338183912,1726377041763,-500.0,0.00012999,2]
[338183913,1726377041772,-500.0,0.00012999,2]
[338183914,1726377041781,-894.06,0.00012999,2]
[338183915,1726377041791,-1037.57,0.00012999,2]
[338183916,1726377041800,-500.0,0.00012999,2]
[338183917,1726377041809,-500.0,0.00012999,2]
[338183918,1726377041819,-552.91,0.00012999,2]
[338183919,1726377041828,-500.0,0.00012999,2]
[338183920,1726377041838,-500.0,0.00012999,2]
[338183921,1726377041847,-582.52,0.00012999,2]
[338183922,1726377041856,-881.57,0.00012999,2]
[338183923,1726377042071,-500.0,0.00012999,2]
[338183924,1726377042081,-500.0,0.00012999,2]
[338183925,1726377042091,-737.26,0.00012999,2]
[338183926,1726377042100,-682.54,0.00012999,2]
[338183927,1726377042110,-1440.45,0.00012999,2]
[338183928,1726377042119,-500.0,0.00012999,2]
[338183929,1726377042129,-1037.55,0.00012999,2]
[338183930,1726377042138,-1037.55,0.00012999,2]
[338183931,1726377042148,-1254.2,0.00012999,2]
[338183932,1726377042157,-1037.55,0.00012999,2]
[338183933,1726377042167,-500.0,0.00012999,2]
[338183934,1726377042176,-1037.55,0.00012999,2]
[338183935,1726377042185,-1037.55,0.00012999,2]
[338183936,1726377042195,-500.0,0.00012999,2]
[338183937,1726377042204,-1037.55,0.00012999,2]
[338183938,1726377042213,-500.0,0.00012999,2]
[338183939,1726377042223,-1037.55,0.00012999,2]
[338183940,1726377042232,-1037.55,0.00012999,2]
[338183941,1726377042242,-1037.55,0.00012999,2]
[338183942,1726377042251,-1037.55,0.00012999,2]
[338183943,1726377042261,-500.0,0.00012999,2]
[338183944,1726377042270,-1037.55,0.00012999,2]
[338183945,1726377042279,-1037.55,0.00012999,2]
[338183946,1726377042289,-1037.55,0.00012999,2]
[338183947,1726377042298,-500.0,0.00012999,2]
[338183948,1726377042308,-1037.55,0.00012999,2]
[338183949,1726377042317,-1037.55,0.00012999,2]
[338183950,1726377042326,-500.0,0.00012999,2]
[338183951,1726377042336,-1037.55,0.00012999,2]
[338183952,1726377042345,-1037.55,0.00012999,2]
[338183953,1726377042354,-1037.55,0.00012999,2]
[338183954,1726377042364,-1037.55,0.00012999,2]
[338183955,1726377042373,-1037.55,0.00012999,2]
[338183956,1726377042383,-1332.13,0.00012999,2]
[338183957,1726377042392,-1037.55,0.00012999,2]
[338183958,1726377042401,-1037.55,0.00012999,2]
[338183959,1726377042411,-1037.55,0.00012999,2]
[338183960,1726377042420,-1037.63759242,0.00012999,2]
[338183961,1726377042430,-500.0,0.00012999,2]
[338183962,1726377042439,-1166.51,0.00012999,2]
[338183963,1726377042448,-500.0,0.00012999,2]
[338183964,1726377042458,-1271.9,0.00012999,2]
[338183965,1726377042467,-204.90559495,0.00012999,2]
[338183966,1726377042476,-500.0,0.00012999,2]
[338183967,1726377042485,-500.0,0.00012999,2]
[338183968,1726377042495,-500.0,0.00012999,2]
[338183969,1726377042504,-1080.6,0.00012999,2]
[338183970,1726377042514,-500.0,0.00012999,2]
[338183971,1726377042523,-998.34,0.00012999,2]
[338183972,1726377042533,-500.0,0.00012999,2]
[338183973,1726377042543,-500.0,0.00012999,2]
[338183974,1726377042552,-500.0,0.00012999,2]
[338183975,1726377042561,-500.0,0.00012999,2]
[338183976,1726377042572,-500.0,0.00012999,2]
[338183977,1726377042582,-500.0,0.00012999,2]
[338183978,1726377042591,-500.0,0.00012999,2]
[338183979,1726377042600,-500.0,0.00012999,2]
[338183980,1726377042609,-1366.06,0.00012999,2]
[338183981,1726377042619,-1861.97,0.00012999,2]
[338183982,1726377042629,-500.0,0.00012999,2]
[338183983,1726377042640,-500.0,0.00012999,2]
[338183984,1726377042649,-500.0,0.00012999,2]
[338183985,1726377042660,-500.0,0.00012999,2]
[338183986,1726377042670,-500.0,0.00012999,2]
[338183987,1726377042681,-500.0,0.00012999,2]
[338183988,1726377042691,-1377.68,0.00012999,2]
[338183989,1726377042701,-832.86,0.00012999,2]
[338183990,1726377042711,-500.0,0.00012999,2]
[338183991,1726377042722,-760.21,0.00012999,2]
[338183992,1726377042734,-500.0,0.00012999,2]
[338183993,1726377042749,-1924.47,0.00012999,2]
[338183994,1726377042758,-500.0,0.00012999,2]
[338183995,1726377042767,-500.0,0.00012999,2]
[338183996,1726377042777,-949.14,0.00012999,2]
[338183997,1726377042786,-524.75573556,0.00012999,2]
[338183998,1726377042795,-500.0,0.00012999,2]
[338183999,1726377042804,-1159.81,0.00012999,2]
[338184000,1726377042813,-500.0,0.00012999,2]
[338184001,1726377042822,-502.66,0.00012999,2]
[338184002,1726377042831,-500.0,0.00012999,2]
[338184003,1726377042840,-1115.56,0.00012999,2]
[338184004,1726377042849,-975.87,0.00012999,2]
[338184005,1726377042858,-500.0,0.00012999,2]
[338184006,1726377042867,-500.0,0.00012999,2]
[338184007,1726377042877,-500.0,0.00012999,2]
[338184008,1726377042886,-500.0,0.00012999,2]
[338184009,1726377042895,-544.79,0.00012999,2]
[338184010,1726377042904,-676.25,0.00012999,2]
[338184011,1726377042913,-500.0,0.00012999,2]
[338184012,1726377042922,-1641.17,0.00012999,2]
[338184013,1726377042931,-500.0,0.00012999,2]
[338184014,1726377042941,-500.0,0.00012999,2]
[338184015,1726377042950,-873.63,0.00012999,2]
[338184016,1726377042959,-557.41,0.00012999,2]
[338184017,1726377042968,-500.0,0.00012999,2]
[338184018,1726377042977,-765.86,0.00012999,2]
[338184019,1726377042987,-567.06,0.00012999,2]
[338184020,1726377042998,-1053.95,0.00012999,2]
[338184021,1726377043007,-500.0,0.00012999,2]
[338184022,1726377043016,-774.19,0.00012999,2]
[338184023,1726377043026,-500.0,0.00012999,2]
[338184024,1726377043035,-2875.45,0.00012999,2]
[338184025,1726377043044,-500.0,0.00012999,2]
[338184026,1726377043054,-500.0,0.00012999,2]
[338184027,1726377043064,-1320.86,0.00012999,2]
[338184028,1726377043074,-2473.8,0.00012999,2]
[338184029,1726377043084,-500.0,0.00012999,2]
[338184030,1726377043093,-822.1,0.00012999,2]
[338184031,1726377043104,-500.0,0.00012999,2]
[338184032,1726377043113,-500.0,0.00012999,2]
[338184033,1726377043123,-869.77,0.00012999,2]
[338184034,1726377043134,-500.0,0.00012999,2]
[338184035,1726377043143,-513.68,0.00012999,2]
[338184036,1726377043153,-304.06004225,0.00012999,2]
[338184037,1726377043162,-500.0,0.00012999,2]
[338184038,1726377043171,-500.0,0.00012999,2]
[338184039,1726377043180,-500.0,0.00012999,2]
[338184040,1726377043190,-500.0,0.00012999,2]
[338184041,1726377043200,-500.0,0.00012999,2]
[338184042,1726377043209,-500.0,0.00012999,2]
[338184043,1726377043218,-500.0,0.00012999,2]
[338184044,1726377043227,-2391.43,0.00012999,2]
[338184045,1726377043236,-500.0,0.00012999,2]
[338184046,1726377043245,-23161.44,0.00012999,2]
[338184047,1726377043255,-647.68,0.00012999,2]
[338184048,1726377043265,-500.0,0.00012999,2]
[338184049,1726377043276,-1500.9,0.00012999,2]
[338184050,1726377043286,-312.35059735,0.00012999,2]
[338184051,1726377043297,-500.0,0.00012999,2]
[338184052,1726377043307,-390.0705403,0.00012999,2]
[338184053,1726377043316,-500.0,0.00012999,2]
[338184054,1726377043325,-771.71,0.00012999,2]
[338184055,1726377043334,-500.0,0.00012999,2]
[338184056,1726377043343,-500.0,0.00012999,2]
[338184057,1726377043353,-7619.39,0.00012999,2]
[338184058,1726377043362,-1850.14,0.00012999,2]
[338184059,1726377043371,-500.0,0.00012999,2]
[338184060,1726377043380,-500.0,0.00012999,2]
[338184061,1726377043389,-686.67,0.00012999,2]
[338184062,1726377043398,-2169.91,0.00012999,2]
[338184063,1726377043407,-500.0,0.00012999,2]
[338184064,1726377043416,-562.58,0.00012999,2]
[338184065,1726377043426,-544.46,0.00012999,2]
[338184066,1726377043435,-1250.96,0.00012999,2]
[338184067,1726377043445,-648.57103852,0.00012999,2]
[338184068,1726377043454,-500.0,0.00012999,2]
[338184069,1726377043464,-500.0,0.00012999,2]
[338184070,1726377043473,-679.41,0.00012999,2]
[338184071,1726377043482,-500.0,0.00012999,2]
[338184072,1726377043493,-500.0,0.00012999,2]
[338184073,1726377043502,-941.21,0.00012999,2]
[338184074,1726377043511,-4402.6,0.00012999,2]
[338184075,1726377043520,-767.47,0.00012999,2]
[338184079,1726377043725,-2607.39,0.00012999,2]
[338184082,1726377043734,-500.0,0.00012999,2]
[338184084,1726377043744,-500.0,0.00012999,2]
[338184085,1726377043753,-500.0,0.00012999,2]
[338184086,1726377043762,-1284.04,0.00012999,2]
[338184087,1726377043771,-522.91,0.00012999,2]
[338184088,1726377043780,-500.0,0.00012999,2]
[338184089,1726377043789,-500.0,0.00012999,2]
[338184090,1726377043798,-3217.34,0.00012999,2]
[338184091,1726377043807,-500.0,0.00012999,2]
[338184092,1726377043815,-500.0,0.00012999,2]
[338184093,1726377043824,-500.0,0.00012999,2]
[338184094,1726377043833,-500.0,0.00012999,2]
[338184095,1726377043842,-500.0,0.00012999,2]
[338184096,1726377043851,-919.28,0.00012999,2]
[338184097,1726377043861,-308.83041111,0.00012999,2]
[338184098,1726377043873,-500.0,0.00012999,2]
[338184099,1726377043882,-500.0,0.00012999,2]
[338184100,1726377043891,-1113.93,0.00012999,2]
[338184101,1726377043900,-500.0,0.00012999,2]
[338184102,1726377043909,-610.19,0.00012999,2]
[338184103,1726377043918,-1224.27,0.00012999,2]
[338184104,1726377043927,-2505.25,0.00012999,2]
[338184105,1726377043937,-500.0,0.00012999,2]
[338184106,1726377043947,-500.0,0.00012999,2]
[338184107,1726377043956,-500.0,0.00012999,2]
[338184108,1726377043965,-500.0,0.00012999,2]
[338184109,1726377043974,-1886.71,0.00012999,2]
[338184110,1726377043984,-500.0,0.00012999,2]
[338184111,1726377043994,-2548.74,0.00012999,2]
[338184112,1726377044003,-500.0,0.00012999,2]
[338184113,1726377044012,-557.28,0.00012999,2]
[338184114,1726377044021,-828.87,0.00012999,2]
[338184115,1726377044031,-874.61,0.00012999,2]
[338184116,1726377044040,-500.0,0.00012999,2]
[338184117,1726377044049,-601.85,0.00012999,2]
[338184118,1726377044058,-501.70280667,0.00012999,2]
[338184119,1726377044067,-814.51,0.00012999,2]
[338184120,1726377044076,-500.0,0.00012999,2]
[338184121,1726377044085,-500.0,0.00012999,2]
[338184122,1726377044094,-734.27,0.00012999,2]
[338184123,1726377044103,-3001.75,0.00012999,2]
[338184124,1726377044112,-500.0,0.00012999,2]
[338184125,1726377044122,-500.0,0.00012999,2]
[338184126,1726377044131,-500.0,0.00012999,2]
[338184127,1726377044140,-989.85,0.00012999,2]
[338184128,1726377044149,-500.0,0.00012999,2]
[338184129,1726377044159,-2254.48,0.00012999,2]
[338184130,1726377044167,-574.18,0.00012999,2]
[338184131,1726377044177,-500.0,0.00012999,2]
[338184132,1726377044186,-701.98,0.00012999,2]
[338184133,1726377044195,-839.7,0.00012999,2]
[338184134,1726377044204,-4226.06,0.00012999,2]
[338184135,1726377044213,-646.19,0.00012999,2]
[338184136,1726377044222,-3408.23,0.00012999,2]
[338184137,1726377044232,-633.11,0.00012999,2]
[338184138,1726377044242,-500.0,0.00012999,2]
[338184139,1726377044251,-500.0,0.00012999,2]
[338184140,1726377044260,-1249.7,0.00012999,2]
[338184141,1726377044270,-500.0,0.00012999,2]
[338184142,1726377044279,-1075.66,0.00012999,2]
[338184143,1726377044287,-500.0,0.00012999,2]
[338184144,1726377044297,-500.0,0.00012999,2]
[338184145,1726377044306,-500.0,0.00012999,2]
[338184146,1726377044316,-1069.69,0.00012999,2]
[338184147,1726377044326,-500.0,0.00012999,2]
[338184148,1726377044336,-500.0,0.00012999,2]
[338184149,1726377044347,-500.0,0.00012999,2]
[338184150,1726377044358,-500.0,0.00012999,2]
[338184151,1726377044369,-500.0,0.00012999,2]
[338184152,1726377044380,-2007.25,0.00012999,2]
[338184153,1726377044390,-775.28,0.00012999,2]
[338184154,1726377044400,-561.16,0.00012999,2]
[338184155,1726377044410,-500.0,0.00012999,2]
[338184156,1726377044422,-500.0,0.00012999,2]
[338184157,1726377044433,-527.66,0.00012999,2]
[338184158,1726377044443,-500.0,0.00012999,2]
[338184159,1726377044452,-677.55,0.00012999,2]
[338184160,1726377044463,-500.0,0.00012999,2]
[338184161,1726377044472,-500.0,0.00012999,2]
[338184162,1726377044481,-500.0,0.00012999,2]
[338184163,1726377044490,-803.03,0.00012999,2]
[338184164,1726377044499,-500.0,0.00012999,2]
[338184165,1726377044508,-500.0,0.00012999,2]
[338184166,1726377044518,-992.91,0.00012999,2]
[338184167,1726377044527,-500.0,0.00012999,2]
[338184168,1726377044536,-500.0,0.00012999,2]
[338184169,1726377044545,-664.21,0.00012999,2]
[338184170,1726377044554,-1469.46,0.00012999,2]
[338184171,1726377044563,-500.0,0.00012999,2]
[338184172,1726377044571,-2323.84,0.00012999,2]
[338184173,1726377044580,-500.0,0.00012999,2]
[338184174,1726377044589,-1258.67,0.00012999,2]
[338184175,1726377044598,-500.0,0.00012999,2]
[338184176,1726377044607,-970.03,0.00012999,2]
[338184177,1726377044616,-500.0,0.00012999,2]
[338184178,1726377044625,-500.0,0.00012999,2]
[338184179,1726377044635,-272.91998949,0.00012999,2]
[338184180,1726377044644,-532.73,0.00012999,2]
[338184181,1726377044653,-3111.09,0.00012999,2]
[338184182,1726377044662,-781.97,0.00012999,2]
[338184183,1726377044672,-3469.27,0.00012999,2]
[338184184,1726377044682,-500.0,0.00012999,2]
[338184185,1726377044693,-500.0,0.00012999,2]
[338184186,1726377044703,-511.91,0.00012999,2]
[338184187,1726377044715,-500.0,0.00012999,2]
[338184188,1726377044725,-500.0,0.00012999,2]
[338184189,1726377044736,-1218.89,0.00012999,2]
[338184190,1726377044745,-594.7,0.00012999,2]
[338184191,1726377044755,-500.0,0.00012999,2]
[338184192,1726377044764,-500.0,0.00012999,2]
[338184193,1726377044773,-500.0,0.00012999,2]
[338184194,1726377044783,-875.28,0.00012999,2]
[338184195,1726377044792,-712.63,0.00012999,2]
[338184196,1726377044801,-837.21,0.00012999,2]
[338184197,1726377044811,-1223.26,0.00012999,2]
[338184198,1726377044821,-500.0,0.00012999,2]
[338184199,1726377044830,-500.0,0.00012999,2]
[338184200,1726377044840,-500.0,0.00012999,2]
[338184201,1726377044849,-500.0,0.00012999,2]
[338184202,1726377044859,-500.0,0.00012999,2]
[338184203,1726377044871,-241.35971528,0.00012999,2]
[338184204,1726377044880,-2103.5,0.00012999,2]
[338184205,1726377044889,-500.0,0.00012999,2]
[338184206,1726377044899,-500.0,0.00012999,2]
[338184207,1726377044908,-500.0,0.00012999,2]
[338184208,1726377044917,-598.71,0.00012999,2]
[338184209,1726377044927,-500.0,0.00012999,2]
[338184210,1726377044937,-500.0,0.00012999,2]
[338184211,1726377044946,-500.0,0.00012999,2]
[338184212,1726377044956,-500.0,0.00012999,2]
[338184213,1726377044965,-500.0,0.00012999,2]